[Event "Titled Tuesday Blitz June 8 2021"]
[White "Kobo, Ori"]
[Black "Ognean, Mihnea-Ionut"]
[WhiteFideId "2812320"]
[BlackFideId "1232347"]
[WhiteElo "2431"]
[BlackElo "2012"]
[Result "1-0"]
[Round "07"]
[TimeControl "180+1"]
[Date "2021.06.08"]
[WhiteClock "0:00:04"]
[BlackClock "0:00:03"]

1. e4 {[%clk 0:03:00]}  c5 {[%clk 0:01:51]} 2. Nf3 {[%clk 0:03:00]}  Nc6 {[%clk 0:01:51]} 3. Bb5 {[%clk 0:02:59]}  g6 {[%clk 0:01:51]} 4. O-O {[%clk 0:02:58]}  Bg7 {[%clk 0:01:51]} 5. Re1 {[%clk 0:02:58]}  e5 {[%clk 0:01:49]} 6. b4 {[%clk 0:02:51]}  cxb4 {[%clk 0:01:43]} 7. a3 {[%clk 0:02:46]}  Nge7 {[%clk 0:01:38]} 8. axb4 {[%clk 0:02:44]}  O-O {[%clk 0:01:38]} 9. Bb2 {[%clk 0:02:21]}  d6 {[%clk 0:01:37]} 10. h3 {[%clk 0:02:18]}  h6 {[%clk 0:01:32]} 11. Bc4 {[%clk 0:01:48]}  Nxb4 {[%clk 0:01:27]} 12. d4 {[%clk 0:01:49]}  Nbc6 {[%clk 0:01:24]} 13. Na3 {[%clk 0:01:37]}  exd4 {[%clk 0:01:22]} 14. Nxd4 {[%clk 0:01:37]}  Nxd4 {[%clk 0:01:16]} 15. Bxd4 {[%clk 0:01:37]}  Nc6 {[%clk 0:01:17]} 16. Bxg7 {[%clk 0:01:36]}  Kxg7 {[%clk 0:01:18]} 17. Nb5 {[%clk 0:01:34]}  Ne5 {[%clk 0:01:11]} 18. Bf1 {[%clk 0:01:25]}  Qb6 {[%clk 0:01:02]} 19. Qxd6 {[%clk 0:01:15]}  Qxd6 {[%clk 0:00:37]} 20. Nxd6 {[%clk 0:01:16]}  Be6 {[%clk 0:00:37]} 21. f4 {[%clk 0:01:09]}  Nc6 {[%clk 0:00:34]} 22. f5 {[%clk 0:00:55]}  gxf5 {[%clk 0:00:32]} 23. exf5 {[%clk 0:00:56]}  Bd5 {[%clk 0:00:32]} 24. c4 {[%clk 0:00:53]}  Rad8 {[%clk 0:00:28]} 25. cxd5 {[%clk 0:00:53]}  Nd4 {[%clk 0:00:26]} 26. Nxb7 {[%clk 0:00:49]}  Rd7 {[%clk 0:00:25]} 27. Nc5 {[%clk 0:00:43]}  Rc7 {[%clk 0:00:24]} 28. Rac1 {[%clk 0:00:38]}  Rfc8 {[%clk 0:00:24]} 29. Nd3 {[%clk 0:00:38]}  Nxf5 {[%clk 0:00:22]} 30. Rxc7 {[%clk 0:00:38]}  Rxc7 {[%clk 0:00:22]} 31. Nb4 {[%clk 0:00:36]}  Rb7 {[%clk 0:00:21]} 32. Nc6 {[%clk 0:00:35]}  h5 {[%clk 0:00:18]} 33. Ra1 {[%clk 0:00:35]}  Rd7 {[%clk 0:00:17]} 34. Ra5 {[%clk 0:00:29]}  Ne3 {[%clk 0:00:16]} 35. Nxa7 {[%clk 0:00:25]}  Nxd5 {[%clk 0:00:16]} 36. Nc6 {[%clk 0:00:23]}  Nf6 {[%clk 0:00:15]} 37. Ne5 {[%clk 0:00:22]}  Re7 {[%clk 0:00:15]} 38. Nf3 {[%clk 0:00:22]}  Rc7 {[%clk 0:00:15]} 39. Ra1 {[%clk 0:00:18]}  Rc5 {[%clk 0:00:15]} 40. Re1 {[%clk 0:00:18]}  Rf5 {[%clk 0:00:15]} 41. Kf2 {[%clk 0:00:18]}  Kh6 {[%clk 0:00:14]} 42. Bd3 {[%clk 0:00:19]}  Ra5 {[%clk 0:00:14]} 43. Re2 {[%clk 0:00:18]}  Kg7 {[%clk 0:00:14]} 44. Bc2 {[%clk 0:00:19]}  Rc5 {[%clk 0:00:14]} 45. Ne5 {[%clk 0:00:18]}  Rc3 {[%clk 0:00:14]} 46. Bf5 {[%clk 0:00:17]}  Rc5 {[%clk 0:00:14]} 47. g4 {[%clk 0:00:17]}  hxg4 {[%clk 0:00:13]} 48. hxg4 {[%clk 0:00:18]}  Ra5 {[%clk 0:00:13]} 49. Kf3 {[%clk 0:00:16]}  Ra3+ {[%clk 0:00:12]} 50. Re3 {[%clk 0:00:14]}  Ra5 {[%clk 0:00:12]} 51. Nc4 {[%clk 0:00:12]}  Rc5 {[%clk 0:00:11]} 52. Nd6 {[%clk 0:00:13]}  Nd5 {[%clk 0:00:10]} 53. Re5 {[%clk 0:00:08]}  Rc3+ {[%clk 0:00:10]} 54. Ke4 {[%clk 0:00:06]}  Nf6+ {[%clk 0:00:10]} 55. Kd4 {[%clk 0:00:07]}  Rg3 {[%clk 0:00:10]} 56. Ne8+ {[%clk 0:00:07]}  Nxe8 {[%clk 0:00:07]} 57. Rxe8 {[%clk 0:00:08]}  Rg1 {[%clk 0:00:07]} 58. Re3 {[%clk 0:00:06]}  Rd1+ {[%clk 0:00:07]} 59. Ke4 {[%clk 0:00:07]}  Ra1 {[%clk 0:00:08]} 60. Kf4 {[%clk 0:00:07]}  Ra4+ {[%clk 0:00:08]} 61. Re4 {[%clk 0:00:08]}  Ra7 {[%clk 0:00:09]} 62. Kg5 {[%clk 0:00:07]}  Rc7 {[%clk 0:00:09]} 63. Re3 {[%clk 0:00:07]}  Rc5 {[%clk 0:00:09]} 64. Rh3 {[%clk 0:00:06]}  Rc7 {[%clk 0:00:09]} 65. Rh7+ {[%clk 0:00:06]}  Kg8 {[%clk 0:00:10]} 66. Rh6 {[%clk 0:00:06]}  Rc5 {[%clk 0:00:09]} 67. Rd6 {[%clk 0:00:06]}  Kg7 {[%clk 0:00:09]} 68. Rd7 {[%clk 0:00:06]}  Re5 {[%clk 0:00:09]} 69. Kf4 {[%clk 0:00:06]}  Re1 {[%clk 0:00:09]} 70. Rc7 {[%clk 0:00:05]}  Rf1+ {[%clk 0:00:09]} 71. Ke5 {[%clk 0:00:05]}  Re1+ {[%clk 0:00:09]} 72. Kd6 {[%clk 0:00:06]}  Rd1+ {[%clk 0:00:09]} 73. Ke7 {[%clk 0:00:05]}  Re1+ {[%clk 0:00:09]} 74. Kd8 {[%clk 0:00:06]}  Rd1+ {[%clk 0:00:09]} 75. Ke8 {[%clk 0:00:06]}  Re1+ {[%clk 0:00:10]} 76. Re7 {[%clk 0:00:06]}  Ra1 {[%clk 0:00:06]} 77. Rxf7+ {[%clk 0:00:06]}  Kh6 {[%clk 0:00:06]} 78. Rf6+ {[%clk 0:00:06]}  Kg5 {[%clk 0:00:06]} 79. Rg6+ {[%clk 0:00:06]}  Kh4 {[%clk 0:00:06]} 80. Rh6+ {[%clk 0:00:05]}  Kg5 {[%clk 0:00:07]} 81. Rg6+ {[%clk 0:00:06]}  Kf4 {[%clk 0:00:06]} 82. Kf7 {[%clk 0:00:05]}  Ra7+ {[%clk 0:00:06]} 83. Kf6 {[%clk 0:00:06]}  Ra6+ {[%clk 0:00:06]} 84. Kg7 {[%clk 0:00:06]}  Ra7+ {[%clk 0:00:07]} 85. Kh6 {[%clk 0:00:06]}  Ra1 {[%clk 0:00:07]} 86. Re6 {[%clk 0:00:06]}  Rh1+ {[%clk 0:00:07]} 87. Kg6 {[%clk 0:00:06]}  Rg1 {[%clk 0:00:06]} 88. Re4+ {[%clk 0:00:07]}  Kf3 {[%clk 0:00:06]} 89. Ra4 {[%clk 0:00:07]}  Re1 {[%clk 0:00:06]} 90. g5 {[%clk 0:00:07]}  Re5 {[%clk 0:00:06]} 91. Kf6 {[%clk 0:00:06]}  Rb5 {[%clk 0:00:06]} 92. g6 {[%clk 0:00:06]}  Rb6+ {[%clk 0:00:07]} 93. Be6 {[%clk 0:00:07]}  Rb8 {[%clk 0:00:08]} 94. g7 {[%clk 0:00:07]}  Kf2 {[%clk 0:00:06]} 95. g8=Q {[%clk 0:00:07]}  Rb2 {[%clk 0:00:06]} 96. Ra2 {[%clk 0:00:04]}  Ke1 {[%clk 0:00:03]} 97. Rxb2 {[%clk 0:00:04]}  Kf1 {[%clk 0:00:02]} 98. Qg2+ {[%clk 0:00:04]}  Ke1 {[%clk 0:00:03]} 99. Qf2+ {[%clk 0:00:04]}  Kd1 {[%clk 0:00:02]} 100. Qe2+ {[%clk 0:00:05]}  Kc1 {[%clk 0:00:03]} 101. Qd2# {[%clk 0:00:04]} 1-0


[Site "https://www.chess.com"]

[Event "Titled Tuesday Blitz June 8 2021"]
[White "Kollars, Dmitrij"]
[Black "Donchenko, Alexander"]
[WhiteFideId "12909572"]
[BlackFideId "24603295"]
[WhiteElo "2576"]
[BlackElo "2553"]
[Result "1-0"]
[Round "07"]
[TimeControl "180+1"]
[Date "2021.06.08"]
[WhiteClock "0:02:22"]
[BlackClock "0:02:04"]

1. e4 {[%clk 0:03:00]}  e5 {[%clk 0:03:00]} 2. Nf3 {[%clk 0:03:01]}  Nc6 {[%clk 0:03:00]} 3. d4 {[%clk 0:03:00]}  exd4 {[%clk 0:03:00]} 4. Nxd4 {[%clk 0:03:01]}  Nf6 {[%clk 0:03:00]} 5. Nxc6 {[%clk 0:03:01]}  bxc6 {[%clk 0:03:00]} 6. e5 {[%clk 0:03:01]}  Qe7 {[%clk 0:03:01]} 7. Qe2 {[%clk 0:03:02]}  Nd5 {[%clk 0:03:01]} 8. c4 {[%clk 0:03:02]}  Ba6 {[%clk 0:03:00]} 9. b3 {[%clk 0:03:02]}  g6 {[%clk 0:03:00]} 10. Ba3 {[%clk 0:03:02]}  Nb4 {[%clk 0:03:00]} 11. Bb2 {[%clk 0:03:02]}  Bg7 {[%clk 0:02:58]} 12. a3 {[%clk 0:03:02]}  Nd5 {[%clk 0:02:56]} 13. Nd2 {[%clk 0:03:02]}  Nf4 {[%clk 0:02:49]} 14. Qe3 {[%clk 0:02:52]}  Ne6 {[%clk 0:02:47]} 15. Ne4 {[%clk 0:02:47]}  O-O {[%clk 0:02:35]} 16. O-O-O {[%clk 0:02:40]}  c5 {[%clk 0:02:24]} 17. Nf6+ {[%clk 0:02:32]}  Bxf6 {[%clk 0:02:20]} 18. exf6 {[%clk 0:02:33]}  Qd8 {[%clk 0:02:20]} 19. Qh6 {[%clk 0:02:28]}  Kh8 {[%clk 0:02:07]} 20. Rd3 {[%clk 0:02:22]}  Rg8 {[%clk 0:02:04]} 21. Qxh7+ {[%clk 0:02:22]} 1-0


[Site "https://www.chess.com"]

[Event "Titled Tuesday Blitz June 8 2021"]
[White "Kretov, Evgenij"]
[Black "Kukhmazov, Arsen"]
[WhiteFideId "4167821"]
[BlackFideId "24108260"]
[WhiteElo "2400"]
[BlackElo "2453"]
[Result "1-0"]
[Round "07"]
[TimeControl "180+1"]
[Date "2021.06.08"]
[WhiteClock "0:00:16"]
[BlackClock "0:00:02"]

1. c4 {[%clk 0:03:00]}  c6 {[%clk 0:02:59]} 2. d4 {[%clk 0:03:00]}  d5 {[%clk 0:03:00]} 3. Nc3 {[%clk 0:03:00]}  Nf6 {[%clk 0:02:59]} 4. e3 {[%clk 0:03:00]}  Bf5 {[%clk 0:02:59]} 5. cxd5 {[%clk 0:03:00]}  cxd5 {[%clk 0:03:00]} 6. Qb3 {[%clk 0:03:00]}  Nc6 {[%clk 0:03:00]} 7. Qxb7 {[%clk 0:02:59]}  Bd7 {[%clk 0:03:00]} 8. Qb3 {[%clk 0:02:59]}  Rb8 {[%clk 0:03:01]} 9. Qd1 {[%clk 0:02:59]}  e5 {[%clk 0:03:02]} 10. dxe5 {[%clk 0:02:59]}  Nxe5 {[%clk 0:03:03]} 11. Nge2 {[%clk 0:02:59]}  Bd6 {[%clk 0:03:03]} 12. Nf4 {[%clk 0:02:59]}  O-O {[%clk 0:03:02]} 13. Be2 {[%clk 0:02:59]}  Bc6 {[%clk 0:02:47]} 14. O-O {[%clk 0:02:57]}  Ne4 {[%clk 0:02:35]} 15. Ncxd5 {[%clk 0:02:42]}  Qh4 {[%clk 0:02:06]} 16. f3 {[%clk 0:02:28]}  Nc5 {[%clk 0:01:18]} 17. b4 {[%clk 0:02:17]}  Na4 {[%clk 0:01:10]} 18. b5 {[%clk 0:02:08]}  Rxb5 {[%clk 0:00:36]} 19. Bxb5 {[%clk 0:01:44]}  Bxb5 {[%clk 0:00:37]} 20. Qe1 {[%clk 0:01:23]}  Qh6 {[%clk 0:00:25]} 21. Rf2 {[%clk 0:01:04]}  g5 {[%clk 0:00:25]} 22. Nh5 {[%clk 0:01:03]}  f5 {[%clk 0:00:18]} 23. Qa5 {[%clk 0:00:41]}  Bc6 {[%clk 0:00:18]} 24. Ng3 {[%clk 0:00:34]}  Nc5 {[%clk 0:00:07]} 25. Nc3 {[%clk 0:00:21]}  Ned3 {[%clk 0:00:07]} 26. Ba3 {[%clk 0:00:20]}  Nxf2 {[%clk 0:00:04]} 27. Bxc5 {[%clk 0:00:20]}  Nd3 {[%clk 0:00:03]} 28. Bxd6 {[%clk 0:00:19]}  Qxd6 {[%clk 0:00:04]} 29. Qxa7 {[%clk 0:00:16]}  Qe6 {[%clk 0:00:03]} 30. Qd4 {[%clk 0:00:16]}  Nb4 {[%clk 0:00:02]} 31. Qxb4 {[%clk 0:00:16]}  Qxe3+ {[%clk 0:00:02]} 32. Kh1 {[%clk 0:00:16]}  Re8 {[%clk 0:00:02]} 33. Qc4+ {[%clk 0:00:16]} 1-0


[Site "https://www.chess.com"]

[Event "Titled Tuesday Blitz June 8 2021"]
[White "Maiorov, Nikita"]
[Black "Grandelius, Nils"]
[WhiteFideId "13501720"]
[BlackFideId "1710400"]
[WhiteElo "2440"]
[BlackElo "2651"]
[Result "0-1"]
[Round "07"]
[TimeControl "180+1"]
[Date "2021.06.08"]
[WhiteClock "0:00:23"]
[BlackClock "0:00:17"]

1. d4 {[%clk 0:03:00]}  Nf6 {[%clk 0:02:58]} 2. c4 {[%clk 0:02:59]}  e6 {[%clk 0:02:59]} 3. Nf3 {[%clk 0:02:58]}  d5 {[%clk 0:02:46]} 4. Nc3 {[%clk 0:02:57]}  Be7 {[%clk 0:02:44]} 5. Bf4 {[%clk 0:02:56]}  O-O {[%clk 0:02:44]} 6. e3 {[%clk 0:02:56]}  b6 {[%clk 0:02:44]} 7. a3 {[%clk 0:02:53]}  c5 {[%clk 0:02:40]} 8. dxc5 {[%clk 0:02:52]}  bxc5 {[%clk 0:02:40]} 9. Be2 {[%clk 0:02:52]}  Nc6 {[%clk 0:02:36]} 10. Ne5 {[%clk 0:02:45]}  Bb7 {[%clk 0:02:30]} 11. Nxc6 {[%clk 0:02:44]}  Bxc6 {[%clk 0:02:31]} 12. O-O {[%clk 0:02:41]}  d4 {[%clk 0:02:09]} 13. exd4 {[%clk 0:02:40]}  cxd4 {[%clk 0:02:10]} 14. Nb5 {[%clk 0:02:40]}  Bxb5 {[%clk 0:02:06]} 15. cxb5 {[%clk 0:02:38]}  Qb6 {[%clk 0:01:56]} 16. Rc1 {[%clk 0:02:33]}  Rac8 {[%clk 0:01:48]} 17. Qa4 {[%clk 0:02:31]}  Nd5 {[%clk 0:01:38]} 18. Bd2 {[%clk 0:02:31]}  Bf6 {[%clk 0:01:34]} 19. Bd3 {[%clk 0:02:26]}  g6 {[%clk 0:01:31]} 20. g3 {[%clk 0:02:26]}  h5 {[%clk 0:01:30]} 21. Rc4 {[%clk 0:02:16]}  Rxc4 {[%clk 0:01:29]} 22. Qxc4 {[%clk 0:02:15]}  h4 {[%clk 0:01:21]} 23. a4 {[%clk 0:02:12]}  Qb8 {[%clk 0:01:19]} 24. Rc1 {[%clk 0:02:11]}  Kg7 {[%clk 0:01:16]} 25. a5 {[%clk 0:02:09]}  Ne7 {[%clk 0:01:16]} 26. Qc7 {[%clk 0:02:08]}  Qa8 {[%clk 0:01:11]} 27. Bf1 {[%clk 0:01:41]}  hxg3 {[%clk 0:00:54]} 28. hxg3 {[%clk 0:01:41]}  Qf3 {[%clk 0:00:40]} 29. b6 {[%clk 0:01:24]}  axb6 {[%clk 0:00:39]} 30. axb6 {[%clk 0:01:24]}  Nd5 {[%clk 0:00:33]} 31. Bg2 {[%clk 0:01:17]}  Qe2 {[%clk 0:00:28]} 32. Bxd5 {[%clk 0:01:17]}  exd5 {[%clk 0:00:24]} 33. Bb4 {[%clk 0:01:13]}  Rh8 {[%clk 0:00:21]} 34. b7 {[%clk 0:00:25]}  Qf3 {[%clk 0:00:17]} 35. Bf8+ {[%clk 0:00:25]}  Kg8 {[%clk 0:00:16]} 36. Bh6 {[%clk 0:00:24]}  Rxh6 {[%clk 0:00:17]} 37. b8=Q+ {[%clk 0:00:23]}  Kg7 {[%clk 0:00:17]} 0-1


[Site "https://www.chess.com"]

[Event "Titled Tuesday Blitz June 8 2021"]
[White "Maksimovic, Bojan"]
[Black "Levine, Joseph"]
[WhiteFideId "14408120"]
[BlackFideId "30940346"]
[WhiteElo "2437"]
[BlackElo "1785"]
[Result "0-1"]
[Round "07"]
[TimeControl "180+1"]
[Date "2021.06.08"]
[WhiteClock "0:00:17"]
[BlackClock "0:00:33"]

1. e4 {[%clk 0:03:00]}  e6 {[%clk 0:02:58]} 2. d4 {[%clk 0:03:00]}  d5 {[%clk 0:02:58]} 3. Nc3 {[%clk 0:03:01]}  Nf6 {[%clk 0:02:56]} 4. Bg5 {[%clk 0:03:00]}  Be7 {[%clk 0:02:54]} 5. e5 {[%clk 0:03:00]}  Nfd7 {[%clk 0:02:52]} 6. Bxe7 {[%clk 0:03:01]}  Qxe7 {[%clk 0:02:53]} 7. Nb5 {[%clk 0:03:01]}  Nb6 {[%clk 0:02:49]} 8. c3 {[%clk 0:02:59]}  a6 {[%clk 0:02:48]} 9. Na3 {[%clk 0:02:59]}  Nc6 {[%clk 0:02:46]} 10. f4 {[%clk 0:02:57]}  Bd7 {[%clk 0:02:45]} 11. Nf3 {[%clk 0:02:57]}  Nd8 {[%clk 0:02:40]} 12. Bd3 {[%clk 0:02:52]}  c5 {[%clk 0:02:37]} 13. O-O {[%clk 0:02:48]}  Nc6 {[%clk 0:02:37]} 14. Nc2 {[%clk 0:02:46]}  g6 {[%clk 0:02:31]} 15. Ne3 {[%clk 0:02:35]}  cxd4 {[%clk 0:02:26]} 16. cxd4 {[%clk 0:02:35]}  Qb4 {[%clk 0:02:26]} 17. Nc2 {[%clk 0:02:09]}  Qe7 {[%clk 0:02:17]} 18. b3 {[%clk 0:02:07]}  Rc8 {[%clk 0:02:05]} 19. Qd2 {[%clk 0:02:05]}  h6 {[%clk 0:01:58]} 20. Kh1 {[%clk 0:02:00]}  O-O {[%clk 0:01:55]} 21. Ne3 {[%clk 0:01:57]}  Kh7 {[%clk 0:01:54]} 22. Ng4 {[%clk 0:01:53]}  Qb4 {[%clk 0:01:53]} 23. Qe3 {[%clk 0:01:50]}  h5 {[%clk 0:01:45]} 24. Nf6+ {[%clk 0:01:15]}  Kg7 {[%clk 0:01:45]} 25. a3 {[%clk 0:00:44]}  Qe7 {[%clk 0:01:27]} 26. Nh4 {[%clk 0:00:24]}  Na5 {[%clk 0:01:16]} 27. b4 {[%clk 0:00:18]}  Nac4 {[%clk 0:01:06]} 28. Qg3 {[%clk 0:00:18]}  Be8 {[%clk 0:01:01]} 29. Nxh5+ {[%clk 0:00:18]}  Kh8 {[%clk 0:01:00]} 30. Nf6 {[%clk 0:00:18]}  Nd7 {[%clk 0:00:59]} 31. Nf3 {[%clk 0:00:14]}  Nxf6 {[%clk 0:00:58]} 32. Qh4+ {[%clk 0:00:14]}  Kg7 {[%clk 0:00:58]} 33. exf6+ {[%clk 0:00:10]}  Qxf6 {[%clk 0:00:58]} 34. Qg3 {[%clk 0:00:07]}  Bb5 {[%clk 0:00:40]} 35. Rae1 {[%clk 0:00:07]}  Rh8 {[%clk 0:00:39]} 36. Ne5 {[%clk 0:00:06]}  Nxa3 {[%clk 0:00:36]} 37. Bxb5 {[%clk 0:00:05]}  Nxb5 {[%clk 0:00:36]} 38. Ng4 {[%clk 0:00:06]}  Qh4 {[%clk 0:00:33]} 39. Qxh4 {[%clk 0:00:02]}  Rxh4 {[%clk 0:00:34]} 40. Ne5 {[%clk 0:00:02]}  Nxd4 {[%clk 0:00:34]} 41. g3 {[%clk 0:00:02]}  Rhh8 {[%clk 0:00:31]} 42. Rd1 {[%clk 0:00:03]}  Rc2 {[%clk 0:00:31]} 43. h4 {[%clk 0:00:02]}  Nf5 {[%clk 0:00:30]} 44. Rf3 {[%clk 0:00:01]}  Rhc8 {[%clk 0:00:26]} 45. Kg1 {[%clk 0:00:02]}  Rb2 {[%clk 0:00:25]} 46. Rdf1 {[%clk 0:00:02]}  Rcc2 {[%clk 0:00:25]} 47. R1f2 {[%clk 0:00:03]}  Rxf2 {[%clk 0:00:25]} 48. Rxf2 {[%clk 0:00:04]}  Rxb4 {[%clk 0:00:24]} 49. Kg2 {[%clk 0:00:03]}  Ne3+ {[%clk 0:00:23]} 50. Kf3 {[%clk 0:00:03]}  Nc4 {[%clk 0:00:24]} 51. Rc2 {[%clk 0:00:02]}  Nxe5+ {[%clk 0:00:24]} 52. fxe5 {[%clk 0:00:03]}  Rc4 {[%clk 0:00:24]} 53. Rb2 {[%clk 0:00:03]}  b5 {[%clk 0:00:25]} 54. Ra2 {[%clk 0:00:04]}  Rc6 {[%clk 0:00:25]} 55. Kf4 {[%clk 0:00:04]}  f6 {[%clk 0:00:25]} 56. g4 {[%clk 0:00:03]}  Rc4+ {[%clk 0:00:25]} 57. Ke3 {[%clk 0:00:03]}  Ra4 {[%clk 0:00:24]} 58. Rxa4 {[%clk 0:00:02]}  bxa4 {[%clk 0:00:25]} 59. exf6+ {[%clk 0:00:01]}  Kxf6 {[%clk 0:00:26]} 60. Kd4 {[%clk 0:00:02]}  a3 {[%clk 0:00:26]} 61. Kc3 {[%clk 0:00:02]}  d4+ {[%clk 0:00:27]} 62. Kb3 {[%clk 0:00:02]}  e5 {[%clk 0:00:27]} 63. Kxa3 {[%clk 0:00:02]}  e4 {[%clk 0:00:28]} 64. Kb3 {[%clk 0:00:03]}  e3 {[%clk 0:00:28]} 65. Kc2 {[%clk 0:00:03]}  a5 {[%clk 0:00:29]} 66. Kd3 {[%clk 0:00:04]}  a4 {[%clk 0:00:29]} 67. Kxd4 {[%clk 0:00:04]}  e2 {[%clk 0:00:29]} 68. Kd3 {[%clk 0:00:05]}  e1=Q {[%clk 0:00:30]} 69. Kc2 {[%clk 0:00:06]}  Qxh4 {[%clk 0:00:30]} 70. g5+ {[%clk 0:00:07]}  Qxg5 {[%clk 0:00:30]} 71. Kc3 {[%clk 0:00:08]}  Qf4 {[%clk 0:00:31]} 72. Kb2 {[%clk 0:00:08]}  Qc4 {[%clk 0:00:30]} 73. Ka1 {[%clk 0:00:09]}  Qc3+ {[%clk 0:00:30]} 74. Kb1 {[%clk 0:00:10]}  Qb3+ {[%clk 0:00:29]} 75. Ka1 {[%clk 0:00:10]}  Qa3+ {[%clk 0:00:30]} 76. Kb1 {[%clk 0:00:11]}  g5 {[%clk 0:00:30]} 77. Kc2 {[%clk 0:00:11]}  Qa2+ {[%clk 0:00:31]} 78. Kc3 {[%clk 0:00:11]}  a3 {[%clk 0:00:31]} 79. Kd4 {[%clk 0:00:11]}  Qb2+ {[%clk 0:00:32]} 80. Kd5 {[%clk 0:00:12]}  a2 {[%clk 0:00:32]} 81. Kc6 {[%clk 0:00:13]}  a1=Q {[%clk 0:00:32]} 82. Kd6 {[%clk 0:00:14]}  Qac1 {[%clk 0:00:32]} 83. Kd5 {[%clk 0:00:14]}  Qbd2+ {[%clk 0:00:32]} 84. Ke4 {[%clk 0:00:15]}  Qce1+ {[%clk 0:00:33]} 85. Kf3 {[%clk 0:00:16]}  Qdf2+ {[%clk 0:00:33]} 86. Kg4 {[%clk 0:00:17]}  Qeg1+ {[%clk 0:00:33]} 87. Kh3 {[%clk 0:00:17]}  Qfh2# {[%clk 0:00:33]} 0-1


[Site "https://www.chess.com"]

[Event "Titled Tuesday Blitz June 8 2021"]
[White "Matinian, Nikita"]
[Black "Shipov, Sergei"]
[WhiteFideId "24129100"]
[BlackFideId "4113624"]
[WhiteElo "2410"]
[BlackElo "2764"]
[Result "0-1"]
[Round "07"]
[TimeControl "180+1"]
[Date "2021.06.08"]
[WhiteClock "0:00:06"]
[BlackClock "0:01:37"]

1. e4 {[%clk 0:03:00]}  e6 {[%clk 0:02:57]} 2. d4 {[%clk 0:03:00]}  d5 {[%clk 0:02:57]} 3. Nc3 {[%clk 0:03:01]}  Bb4 {[%clk 0:02:57]} 4. Ne2 {[%clk 0:03:01]}  dxe4 {[%clk 0:02:56]} 5. a3 {[%clk 0:03:01]}  Be7 {[%clk 0:02:56]} 6. Nxe4 {[%clk 0:03:00]}  Nf6 {[%clk 0:02:57]} 7. Nxf6+ {[%clk 0:02:57]}  Bxf6 {[%clk 0:02:56]} 8. Be3 {[%clk 0:02:58]}  c5 {[%clk 0:02:52]} 9. g3 {[%clk 0:02:51]}  Nc6 {[%clk 0:02:50]} 10. Bg2 {[%clk 0:02:26]}  Nxd4 {[%clk 0:02:48]} 11. Nxd4 {[%clk 0:02:26]}  cxd4 {[%clk 0:02:48]} 12. Bd2 {[%clk 0:02:22]}  O-O {[%clk 0:02:46]} 13. O-O {[%clk 0:02:22]}  e5 {[%clk 0:02:45]} 14. Re1 {[%clk 0:02:14]}  Bf5 {[%clk 0:02:41]} 15. Bb4 {[%clk 0:02:08]}  Re8 {[%clk 0:02:40]} 16. Bxb7 {[%clk 0:02:07]}  Rb8 {[%clk 0:02:40]} 17. Bc6 {[%clk 0:02:07]}  Re6 {[%clk 0:02:41]} 18. Ba4 {[%clk 0:01:06]}  a5 {[%clk 0:02:39]} 19. Bd2 {[%clk 0:01:05]}  Rxb2 {[%clk 0:02:38]} 20. Qf3 {[%clk 0:01:01]}  Bxc2 {[%clk 0:02:32]} 21. Bc6 {[%clk 0:00:44]}  e4 {[%clk 0:02:03]} 22. Bxe4 {[%clk 0:00:16]}  Bxe4 {[%clk 0:02:02]} 23. Rxe4 {[%clk 0:00:17]}  Rxe4 {[%clk 0:02:02]} 24. Qxe4 {[%clk 0:00:18]}  Rxd2 {[%clk 0:02:02]} 25. Rc1 {[%clk 0:00:18]}  g6 {[%clk 0:01:53]} 26. Qb7 {[%clk 0:00:14]}  Qd6 {[%clk 0:01:50]} 27. Rc8+ {[%clk 0:00:07]}  Kg7 {[%clk 0:01:50]} 28. Qa8 {[%clk 0:00:07]}  Qe5 {[%clk 0:01:37]} 29. Rg8+ {[%clk 0:00:06]}  Kh6 {[%clk 0:01:37]} 0-1


[Site "https://www.chess.com"]

[Event "Titled Tuesday Blitz June 8 2021"]
[White "Maximov, Dmitry"]
[Black "Eynullayev, Atilla"]
[WhiteFideId "14105659"]
[BlackFideId "13413570"]
[WhiteElo "2494"]
[BlackElo "1997"]
[Result "1-0"]
[Round "07"]
[TimeControl "180+1"]
[Date "2021.06.08"]
[WhiteClock "0:00:55"]
[BlackClock "0:00:07"]

1. e4 {[%clk 0:03:00]}  c5 {[%clk 0:02:58]} 2. Nf3 {[%clk 0:03:00]}  d6 {[%clk 0:02:56]} 3. c3 {[%clk 0:03:00]}  Nf6 {[%clk 0:02:55]} 4. Bc4 {[%clk 0:03:00]}  g6 {[%clk 0:02:48]} 5. O-O {[%clk 0:02:58]}  Bg7 {[%clk 0:02:48]} 6. Re1 {[%clk 0:02:58]}  O-O {[%clk 0:02:48]} 7. Bf1 {[%clk 0:02:57]}  Nc6 {[%clk 0:02:45]} 8. h3 {[%clk 0:02:57]}  e5 {[%clk 0:02:41]} 9. d4 {[%clk 0:02:46]}  cxd4 {[%clk 0:02:40]} 10. cxd4 {[%clk 0:02:46]}  exd4 {[%clk 0:02:28]} 11. Nxd4 {[%clk 0:02:46]}  Re8 {[%clk 0:02:25]} 12. Nxc6 {[%clk 0:02:45]}  bxc6 {[%clk 0:02:25]} 13. Nc3 {[%clk 0:02:43]}  Be6 {[%clk 0:01:41]} 14. Qc2 {[%clk 0:02:36]}  Rc8 {[%clk 0:01:37]} 15. Bg5 {[%clk 0:02:34]}  h6 {[%clk 0:01:36]} 16. Be3 {[%clk 0:02:31]}  d5 {[%clk 0:01:34]} 17. Rad1 {[%clk 0:02:27]}  Qa5 {[%clk 0:01:31]} 18. Bd2 {[%clk 0:02:24]}  d4 {[%clk 0:01:26]} 19. Na4 {[%clk 0:02:18]}  Qh5 {[%clk 0:01:08]} 20. Nc5 {[%clk 0:02:16]}  Bg4 {[%clk 0:00:40]} 21. Rc1 {[%clk 0:02:00]}  Rcd8 {[%clk 0:00:33]} 22. e5 {[%clk 0:01:46]}  Bf5 {[%clk 0:00:31]} 23. Qa4 {[%clk 0:01:34]}  Nd5 {[%clk 0:00:18]} 24. Qxc6 {[%clk 0:01:26]}  Rxe5 {[%clk 0:00:15]} 25. Rxe5 {[%clk 0:01:21]}  Bxe5 {[%clk 0:00:16]} 26. Nb7 {[%clk 0:01:14]}  Rd7 {[%clk 0:00:12]} 27. Nc5 {[%clk 0:00:57]}  Rd6 {[%clk 0:00:08]} 28. Qe8+ {[%clk 0:00:55]}  Kg7 {[%clk 0:00:07]} 29. Qxe5+ {[%clk 0:00:55]} 1-0


[Site "https://www.chess.com"]

[Event "Titled Tuesday Blitz June 8 2021"]
[White "Perez Rodriguez, Luis Manuel"]
[Black "Can, Emre"]
[WhiteFideId "3503364"]
[BlackFideId "6302181"]
[WhiteElo "2429"]
[BlackElo "2503"]
[Result "1-0"]
[Round "07"]
[TimeControl "180+1"]
[Date "2021.06.08"]
[WhiteClock "0:00:41"]
[BlackClock "0:00:46"]

1. e4 {[%clk 0:03:00]}  c5 {[%clk 0:03:00]} 2. Nf3 {[%clk 0:03:00]}  d6 {[%clk 0:03:00]} 3. d4 {[%clk 0:03:00]}  cxd4 {[%clk 0:03:01]} 4. Nxd4 {[%clk 0:03:00]}  Nf6 {[%clk 0:03:01]} 5. Nc3 {[%clk 0:03:01]}  g6 {[%clk 0:03:02]} 6. Be3 {[%clk 0:03:01]}  Bg7 {[%clk 0:03:02]} 7. f3 {[%clk 0:03:01]}  a6 {[%clk 0:02:59]} 8. Qd2 {[%clk 0:03:00]}  h5 {[%clk 0:02:59]} 9. O-O-O {[%clk 0:02:56]}  b5 {[%clk 0:02:57]} 10. g3 {[%clk 0:02:45]}  Bb7 {[%clk 0:02:55]} 11. h3 {[%clk 0:02:44]}  Nbd7 {[%clk 0:02:54]} 12. Rg1 {[%clk 0:02:37]}  Rc8 {[%clk 0:02:53]} 13. g4 {[%clk 0:02:33]}  hxg4 {[%clk 0:02:47]} 14. hxg4 {[%clk 0:02:34]}  b4 {[%clk 0:02:45]} 15. Nce2 {[%clk 0:02:33]}  a5 {[%clk 0:02:28]} 16. Kb1 {[%clk 0:02:30]}  Ne5 {[%clk 0:02:27]} 17. Ng3 {[%clk 0:02:24]}  Nc4 {[%clk 0:02:04]} 18. Bxc4 {[%clk 0:02:22]}  Rxc4 {[%clk 0:02:05]} 19. Rh1 {[%clk 0:02:18]}  Rxh1 {[%clk 0:01:52]} 20. Rxh1 {[%clk 0:02:19]}  Qc8 {[%clk 0:01:34]} 21. Ngf5 {[%clk 0:01:35]}  gxf5 {[%clk 0:01:28]} 22. Nxf5 {[%clk 0:01:34]}  Bf8 {[%clk 0:01:26]} 23. Rh8 {[%clk 0:01:34]}  Nxe4 {[%clk 0:00:46]} 24. fxe4 {[%clk 0:00:58]}  Bxe4 {[%clk 0:00:46]} 25. Nxd6+ {[%clk 0:00:41]} 1-0


[Site "https://www.chess.com"]